bitfinex-derivatives/quotes_SOLF0:USTF0_20250818
["timestamp","ask_amount","ask_price","bid_price","bid_amount"]
[1755480613328,2.88,187.93,187.73,2.84]
[1755480613623,5.36939867,187.96,187.73,2.84]
[1755480613624,2.88,187.88,187.73,2.84]
[1755480614527,2.88,187.97,187.77,2.84]
[1755480614721,2.88,187.97,187.83,5.3201]
[1755480614928,2.88,187.97,187.84,2.84]
[1755480615321,2.88,188.0,187.88,2.84]
[1755480615526,2.88,188.06,187.88,2.84]
[1755480615727,2.88,188.06,187.9,2.84]
[1755480616430,2.9,188.04,187.96,2.87497428]
[1755480616831,5.3145,188.04,187.97,5.3161]
[1755480617129,2.9,188.07,187.96,2.87497428]
[1755480617322,2.9,188.1,187.96,2.87497428]
[1755480617518,2.9,188.16,188.07,2.84]
[1755480617724,5.07338432,188.15,188.07,2.84]
[1755480617930,2.9,188.16,188.07,2.84]
[1755480618427,2.9,188.16,188.1,8.3627]
[1755480618628,2.89,188.28,188.1,3.05]
[1755480618821,5.08619896,188.27,188.11,5.36939867]
[1755480619022,7.97619896,188.26,188.12,3.05]
[1755480619221,5.36939867,188.37,188.12,3.05]
[1755480619222,5.3078,188.28,188.12,3.05]
[1755480619523,2.89,188.29,188.18,3.05]
[1755480619729,2.89,188.26,188.18,3.05]
[1755480619925,2.89,188.36,188.18,3.05]
[1755480620321,2.89,188.28,188.2,0.03628461]
[1755480620833,2.89,188.31,188.16,3.05]
[1755480621228,2.89,188.31,188.22,0.03703927]
[1755480621422,8.1989,188.24,188.22,0.03703927]
[1755480621621,2.89,188.23,188.16,3.05]
[1755480621827,2.89,188.23,188.08,3.05]
[1755480622430,2.89,188.23,187.84,5.36939867]
[1755480622431,5.36939867,188.23,187.75,15.86]
[1755480622634,2.88,188.14,187.92,3.05]
[1755480623130,2.88,188.09,187.96,3.05]
[1755480623334,2.88,188.12,187.96,8.41939867]
[1755480623629,357.22,188.29,187.93,357.22]
[1755480623630,2.88,188.16,187.97,3.05]
[1755480623835,0.03380301,188.06,187.99,3.05]
[1755480624027,2.88,188.16,187.99,3.05]
[1755480624628,2.89,188.12,187.99,3.05]
[1755480624936,2.89,188.07,187.94,3.05]
[1755480625327,5.36939867,188.13,187.93,357.22]
[1755480625328,2.89,188.05,187.93,357.22]
[1755480625536,5.3184,187.9,187.84,3.05]
[1755480626029,2.89,187.96,187.84,8.37]
[1755480626239,2.89,188.01,187.85,3.05]
[1755480626531,5.3147,188.04,187.89,8.66114783]
[1755480626738,2.89,188.14,187.9,3.05]
[1755480626934,2.89,188.12,187.9,3.05]
[1755480627131,2.89,188.1,187.9,3.05]
[1755480627337,8.66114783,188.19,187.86,170.54]
[1755480627338,2.89,188.13,187.95,3.05]
[1755480627635,2.89,188.13,187.86,170.54]
[1755480627636,5.3113,188.16,188.0,3.05]
[1755480627827,2.89,188.21,188.05,3.05]
[1755480628135,8.66114783,188.34,188.06,0.03382269]
[1755480628431,2.89,188.08,187.85,3.05]
[1755480628738,8.66114783,188.25,187.84,62.0]
[1755480628739,2.89,188.14,187.94,3.05]
[1755480628931,2.89,188.24,187.99,3.05]
[1755480629137,2.89,188.24,188.01,3.05]
[1755480629328,2.89,188.29,188.03,8.66114783]
[1755480629532,2.89,188.27,188.04,3.05]
[1755480629733,0.03542043,188.14,188.03,8.66114783]
[1755480630040,0.03542043,188.14,188.07,3.05]
[1755480630230,0.03542043,188.14,188.03,170.16]
[1755480630231,5.3101,188.2,188.1,5.3127]
[1755480630426,2.89,188.24,188.11,3.05]
[1755480630631,5.79481457,188.37,188.11,3.05]
[1755480630632,2.89,188.34,188.11,3.05]
[1755480630839,2.89,188.29,188.15,3.05]
[1755480631034,2.89,188.29,188.17,3.05]
[1755480631231,2.89,188.29,188.17,173.01]
[1755480631539,2.89,188.33,188.18,3.05]
[1755480631836,2.89,188.37,188.19,3.05]
[1755480632030,2.89,188.37,188.25,5.3085]
[1755480632031,5.3058,188.35,188.25,5.3085]
[1755480632226,2.89,188.37,188.26,3.05]
[1755480632426,5.3066,188.32,188.26,3.05]
[1755480632634,2.89,188.34,188.2,3.05]
[1755480632831,2.89,188.32,188.2,3.05]
[1755480633230,8.66114783,188.43,188.2,3.05]
[1755480633231,2.89,188.43,188.2,3.05]
[1755480633436,2.89,188.43,188.17,8.66114783]
[1755480633437,2.89,188.41,188.22,3.05]
[1755480633636,2.89,188.35,188.24,3.05]
[1755480634234,2.89,188.35,188.24,8.3588]
[1755480634436,2.89,188.35,188.24,169.32]
[1755480634635,2.89,188.35,188.25,3.05]
[1755480634830,2.89,188.43,188.28,3.05]
[1755480635033,2.89,188.41,188.28,3.05]
[1755480635235,5.3043,188.4,188.31,5.3068]
[1755480635437,2.89,188.41,188.32,3.05]
[1755480636336,5.3046,188.39,188.32,3.05]
[1755480636536,2.89,188.41,188.32,3.05]
[1755480636737,2.89,188.39,188.26,3.05]
[1755480636932,2.89,188.37,188.26,3.05]
[1755480637139,2.89,188.45,188.26,3.05]
[1755480637333,2.89,188.43,188.26,3.05]
[1755480637538,2.89,188.43,188.35,3.05]
[1755480637842,8.75289731,188.55,188.35,3.05]
[1755480637843,2.89,188.46,188.35,3.05]
[1755480638035,2.89,188.5,188.35,3.05]
[1755480638236,9.3038363,188.49,188.35,3.05]
[1755480638438,2.89,188.5,188.35,3.05]
[1755480638640,2.89,188.5,188.41,0.04036548]
[1755480640041,5.3026,188.46,188.41,3.09036548]
[1755480640240,8.66114783,188.57,188.41,3.09036548]
[1755480640241,2.89,188.56,188.41,3.09036548]
[1755480640440,2.89,188.56,188.41,8.39426548]
[1755480640441,3.98798672,188.55,188.41,8.39426548]
[1755480640639,2.89,188.54,188.42,3.05]
[1755480641045,5.3017,188.5,188.46,0.03470541]
[1755480641344,5.3017,188.5,188.46,3.08470541]
[1755480641345,2.89,188.5,188.46,3.08470541]
[1755480641541,2.89,188.5,188.46,3.05]
[1755480641744,2.89,188.5,188.4,3.05]
[1755480641945,8.66114783,188.58,188.46,0.0354553]
[1755480641946,2.89,188.57,188.46,0.0354553]
[1755480642152,8.66114783,188.58,188.46,0.0354553]
[1755480642153,5.3023,188.47,188.46,0.0354553]
[1755480642347,8.66114783,188.58,188.4,3.05]
[1755480642548,2.89,188.56,188.4,3.05]
[1755480642746,2.89,188.56,188.45,0.03627962]
[1755480642950,8.66114783,188.56,188.45,0.03627962]
[1755480643246,8.1926,188.46,188.45,0.03627962]
[1755480643445,2.89,188.55,188.45,0.03627962]
[1755480643641,8.1926,188.46,188.45,0.03627962]
[1755480644246,2.89,188.46,188.45,0.03627962]
[1755480644552,2.89,188.51,188.45,0.03627962]
[1755480645052,2.89,188.59,188.43,3.05]
[1755480645242,2.89,188.57,188.43,3.05]
[1755480645446,2.89,188.57,188.48,3.05]
[1755480645644,2.89,188.64,188.48,3.05]
[1755480645957,2.89,188.64,188.45,168.08]
[1755480646250,2.89,188.64,188.54,0.03577592]
[1755480646450,2.89,188.57,188.54,0.03577592]
[1755480646655,2.89,188.56,188.54,0.03577592]
[1755480646845,5.3001,188.55,188.54,7.592e-05]
[1755480647246,8.1901,188.55,188.54,7.592e-05]
[1755480647447,2.89,188.55,188.46,3.05]
[1755480647748,2.89,188.55,188.42,3.08]
[1755480648052,5.3018,188.49,188.42,3.08]
[1755480648247,2.86,188.58,188.42,3.08]
[1755480648447,2.86,188.58,188.49,3.08]
[1755480648847,0.03383093,188.52,188.41,356.62]
[1755480649058,0.03383093,188.52,188.51,3.08]
[1755480649451,2.86,188.63,188.51,3.62]
[1755480649644,2.86,188.63,188.52,3.08]
[1755480650248,2.86,188.65,188.44,3.08]
[1755480650750,2.86,188.57,188.53,0.03827562]
[1755480651047,8.66114783,188.66,188.53,0.03827562]
[1755480651048,2.86,188.65,188.53,0.03827562]
[1755480651253,5.3009,188.53,188.5,3.08]
[1755480651447,2.86,188.56,188.42,3.08]
[1755480652448,5.3004,188.54,188.42,3.08]
[1755480652754,2.86,188.56,188.42,3.08]
[1755480653249,2.86,188.55,188.42,3.08]
[1755480653452,5.3027,188.46,188.42,3.08]
[1755480653753,2.86,188.55,188.43,3.08]
[1755480653949,2.86,188.55,188.3,8.66114783]
[1755480653950,2.86,188.55,188.31,356.44]
[1755480654147,2.86,188.55,188.32,166.58]
[1755480654347,2.86,188.55,188.33,3.08]
[1755480654648,5.304,188.42,188.36,5.3054]
[1755480654849,2.86,188.46,188.38,3.08]
[1755480658053,5.3037,188.43,188.39,3.08]
[1755480658348,5.3037,188.43,188.4,3.08]
[1755480658653,5.3035,188.43,188.41,3.08]
[1755480658948,2.86,188.46,188.31,356.44]
[1755480658949,2.86,188.46,188.32,3.08]
[1755480660047,2.86,188.43,188.35,3.08]
[1755480660355,2.86,188.46,188.35,3.08]
[1755480660548,2.86,188.45,188.32,3.08]
[1755480660951,2.86,188.43,188.32,3.08]
[1755480661344,2.86,188.43,188.29,3.08]
[1755480661551,2.86,188.39,188.29,3.08]
[1755480661752,2.86,188.43,188.29,3.08]
[1755480662353,2.86,188.43,188.28,165.26]
[1755480662354,2.86,188.43,188.35,3.08]
[1755480662754,2.86,188.48,188.35,3.08]
[1755480663059,2.86,188.46,188.35,3.08]
[1755480663256,2.86,188.46,188.39,3.08]
[1755480663556,2.86,188.46,188.28,165.26]
[1755480663557,2.86,188.46,188.31,3.08]
[1755480663758,5.304,188.42,188.31,3.08]
[1755480664360,2.86,188.46,188.37,3.08]
[1755480664557,2.86,188.48,188.37,3.08]
[1755480664962,5.303,188.45,188.38,5.3047]
[1755480665161,5.303,188.45,188.41,0.03647555]
[1755480665359,2.86,188.48,188.42,3.08]
[1755480665559,2.86,188.51,188.42,3.08]
[1755480665955,5.3024,188.48,188.42,8.3835]
[1755480666155,2.86,188.51,188.42,3.08]
[1755480666355,2.86,188.51,188.45,0.03866439]
[1755480666558,5.302,188.49,188.45,3.11866439]
[1755480666956,2.86,188.51,188.45,0.03866439]
[1755480667172,5.36979225,188.58,188.45,0.03866439]
[1755480667173,2.86,188.54,188.46,3.08]
[1755480667565,5.3007,188.53,188.46,3.08]
[1755480667766,2.86,188.54,188.46,3.08]
[1755480668060,2.86,188.57,188.49,3.08]
[1755480668660,2.86,188.57,188.51,3.08]
[1755480668857,2.86,188.57,188.51,3.1170139]
[1755480669055,5.2999,188.56,188.51,0.0370139]
[1755480669258,2.86,188.56,188.51,0.0370139]
[1755480669567,5.2996,188.58,188.54,3.08]
[1755480669865,2.86,188.6,188.51,3.1170139]
[1755480670061,2.86,188.6,188.51,3.08]
[1755480670365,5.2999,188.56,188.54,0.03983234]
[1755480670561,2.86,188.55,188.54,0.03983234]
[1755480670757,2.86,188.55,188.48,3.08]
[1755480670956,3.87422468,188.54,188.48,3.08]
[1755480671158,12.03462468,188.54,188.53,0.03576329]
[1755480671558,6.73422468,188.54,188.48,3.08]
[1755480671765,2.86,188.52,188.42,3.08]
[1755480671965,3.87422468,188.51,188.42,3.08]
[1755480672165,3.87422468,188.5,188.49,0.03559043]
[1755480672362,3.87422468,188.5,188.49,3.11559043]
[1755480672561,3.87422468,188.5,188.49,3.08]
[1755480672762,2.86,188.55,188.49,3.08]
[1755480672965,3.89672642,188.54,188.38,519.94]
[1755480673165,3.89672642,188.53,188.51,3.08]
[1755480673368,3.89672642,188.52,188.51,3.08]
[1755480676271,2.86,188.61,188.51,3.08]
[1755480676469,7.88348579,188.6,188.43,5.36979225]
[1755480676769,11.70472189,188.59,188.52,3.08]
[1755480676958,5.2998,188.57,188.52,3.08]
[1755480677166,2.86,188.61,188.52,3.08]
[1755480677365,11.70275666,188.6,188.52,3.08]
[1755480677571,11.70275666,188.59,188.52,3.08]
[1755480677767,14.59242668,188.58,188.52,3.08]
[1755480677962,2.89,188.56,188.52,3.08]
[1755480678267,2.89,188.54,188.43,2.84]
[1755480678472,11.70581398,188.53,188.43,2.84]
[1755480678672,7.55348897,188.52,188.43,2.84]
[1755480678870,5.3016,188.5,188.45,2.84]
[1755480679172,2.89,188.54,188.45,2.84]
[1755480679467,5.302,188.49,188.43,5.3034]
[1755480679661,2.89,188.52,188.44,2.84]
[1755480679864,3.73441534,188.51,188.44,2.84]
[1755480680065,5.3018,188.49,188.44,2.84]
[1755480680571,2.89,188.56,188.44,2.84]
[1755480680772,11.61205229,188.55,188.45,5.3029]
[1755480680969,7.89188803,188.54,188.46,2.84]
[1755480681181,5.3012,188.52,188.46,5.3026]
[1755480681364,2.89,188.55,188.49,2.84]
[1755480681567,2.89,188.53,188.49,2.84]
[1755480681766,6.62727402,188.52,188.46,2.84]
[1755480681976,2.89,188.5,188.39,2.84]
[1755480682177,3.73727402,188.49,188.39,2.84]
[1755480682374,2.89,188.5,188.4,2.84]
[1755480682573,3.73799822,188.49,188.4,2.84]
[1755480682766,3.73799822,188.48,188.4,2.84]
[1755480682962,5.79481457,188.55,188.43,2.84]
[1755480683163,11.62149429,188.54,188.43,2.84]
[1755480683374,5.3013,188.51,188.43,2.84]
[1755480683871,2.89,188.54,188.43,2.84]
[1755480683872,5.3005,188.54,188.43,2.84]
[1755480684069,3.7389418,188.53,188.43,2.84]
[1755480684270,2.89,188.57,188.43,2.84]
[1755480684475,7.89942218,188.56,188.48,2.84]
[1755480684771,15.96519225,188.64,188.48,2.84]
[1755480684772,2.89,188.54,188.48,2.84]
[1755480684970,8.68481457,188.63,188.53,2.84]
[1755480685175,3.74064161,188.62,188.53,2.84]
[1755480685471,5.2976,188.64,188.58,5.2991]
[1755480685675,2.89,188.67,188.53,2.84]
[1755480685875,4.16198141,188.66,188.53,2.84]
[1755480686070,2.89,188.64,188.53,2.84]
[1755480687079,8.1876,188.64,188.58,2.84]
[1755480687576,2.89,188.71,188.65,2.84]
[1755480688071,2.89,188.74,188.65,2.84]
[1755480688373,2.89,188.8,188.65,2.84]
[1755480688675,2.89,188.8,188.73,2.84]
[1755480689067,1.28249564,188.81,188.73,2.84]
[1755480689272,2.89,188.8,188.73,2.84]
[1755480689667,2.89,188.78,188.73,2.84]
[1755480689865,2.89,188.8,188.73,2.84]
[1755480691077,5.294,188.77,188.74,2.84]
[1755480691276,2.89,188.8,188.75,2.84]
[1755480691578,8.1834,188.79,188.76,2.84]
[1755480691762,1.28249564,188.81,188.64,160.24]
[1755480691967,1.28249564,188.81,188.58,5.91010863]
[1755480691968,2.89,188.8,188.58,2.84]
[1755480692164,2.89,188.76,188.58,2.84]
[1755480692573,5.36979225,188.77,188.53,520.12]
[1755480692765,2.89,188.69,188.61,2.84]
[1755480693166,5.2972,188.66,188.54,2.84]
[1755480693370,2.89,188.76,188.54,2.84]
[1755480693681,2.89,188.76,188.57,2.84]
[1755480694181,1.28249564,188.81,188.57,2.84]
[1755480694182,2.89,188.74,188.57,2.84]
[1755480694376,2.89,188.7,188.57,2.84]
[1755480694571,5.36979225,188.8,188.57,8.20979225]
[1755480694772,2.89,188.75,188.67,2.84]
[1755480695073,2.89,188.75,188.66,2.84]
[1755480695275,1.28249564,188.81,188.54,163.6]
[1755480695276,2.89,188.78,188.71,2.84]
[1755480695667,1.28249564,188.81,188.73,5.2951]
[1755480695872,4.17249564,188.81,188.74,2.84]
[1755480696071,2.89,188.8,188.71,2.84]
[1755480696267,2.89,188.8,188.65,163.7]
[1755480696268,2.89,188.8,188.68,2.84]
[1755480696676,5.2958,188.71,188.68,2.84]
[1755480696878,1.28249564,188.81,188.58,2.84]
[1755480696879,2.89,188.77,188.58,2.84]
[1755480697382,5.36979225,188.74,188.58,2.84]
[1755480697577,2.89,188.73,188.58,2.84]
[1755480697773,2.89,188.67,188.58,2.84]
[1755480698382,2.89,188.73,188.58,2.84]
[1755480698678,5.2962,188.69,188.63,5.2978]
[1755480698879,2.89,188.73,188.65,2.84]
[1755480699775,5.2955,188.72,188.66,5.2968]
[1755480699975,5.2955,188.72,188.65,2.84]
[1755480699976,5.36979225,188.75,188.59,2.84]
[1755480700182,2.89,188.74,188.59,2.84]
[1755480700381,2.89,188.74,188.54,162.98]
[1755480700382,2.89,188.7,188.54,2.84]
[1755480700778,2.89,188.7,188.55,5.3001]
[1755480701179,2.89,188.66,188.54,2.84]
[1755480701378,2.89,188.66,188.52,2.84]
[1755480701774,5.2996,188.57,188.52,2.84]
[1755480702083,2.89,188.66,188.47,2.84]
[1755480702275,5.2996,188.58,188.52,5.3009]
[1755480702478,2.89,188.66,188.47,2.84]
[1755480702677,2.89,188.66,188.5,2.84]
[1755480702877,5.2982,188.62,188.57,2.84]
[1755480703074,5.2982,188.62,188.56,5.2997]
[1755480703075,5.2982,188.62,188.59,2.84]
[1755480703479,2.89,188.62,188.5,2.84]
[1755480704671,5.2988,188.6,188.54,2.84]
[1755480704878,2.89,188.62,188.54,2.87346366]
[1755480705878,2.89,188.62,188.54,0.03346366]
[1755480706085,3.83945134,188.61,188.54,0.03346366]
[1755480706281,2.89,188.62,188.41,523.26979225]
[1755480706282,2.89,188.5,188.46,2.84]
[1755480706487,2.89,188.53,188.47,2.84]
[1755480706693,2.89,188.58,188.47,2.84]
[1755480706881,2.89,188.58,188.51,2.84]
[1755480707883,2.8,188.62,188.51,2.84]
[1755480708078,3.84483751,188.61,188.51,2.84]
[1755480708282,3.84483751,188.6,188.51,2.84]
[1755480708484,5.36979225,188.63,188.53,2.85]
[1755480708683,2.8,188.61,188.53,2.85]
[1755480708887,2.8,188.59,188.53,2.85]
[1755480709088,8.0993,188.59,188.53,2.85]
[1755480709389,2.8,188.62,188.53,2.85]
[1755480709582,0.03366115,188.58,188.53,2.85]
[1755480709784,0.03366115,188.58,188.43,5.36979225]
[1755480709985,5.2988,188.61,188.55,5.3001]
[1755480710182,2.8,188.65,188.56,2.85]
[1755480710379,3.85101684,188.64,188.56,2.85]
[1755480710592,2.8,188.63,188.57,2.85]
[1755480710891,0.03496416,188.62,188.59,2.85]
[1755480711079,0.03496416,188.62,188.61,8.1485]
[1755480711283,2.8,188.7,188.61,8.1485]
[1755480711589,2.8,188.7,188.61,2.85]
[1755480711590,3.85359215,188.69,188.61,2.85]
[1755480711789,5.2965,188.69,188.64,2.85]
[1755480711986,5.2965,188.69,188.55,5.36979225]
[1755480712198,5.2966,188.68,188.65,2.85]
[1755480712495,2.8,188.74,188.56,2.85]
[1755480712686,3.85426635,188.73,188.56,2.85]
[1755480712881,2.8,188.74,188.67,2.85]
[1755480713083,3.85453313,188.73,188.67,2.85]
[1755480713393,2.8,188.74,188.67,2.85]
[1755480713590,3.85437611,188.73,188.67,2.85]
[1755480713892,2.8,188.74,188.67,2.85]
[1755480714094,5.296,188.71,188.68,2.85]
[1755480714288,2.8,188.72,188.56,2.85]
[1755480714489,5.2963,188.69,188.56,2.85]
[1755480715184,5.296,188.7,188.63,2.85]
[1755480715690,5.2971,188.66,188.53,222.7]
[1755480715894,2.8,188.74,188.54,2.85]
[1755480716190,2.8,188.7,188.57,5.2996]
[1755480716390,2.8,188.66,188.59,2.85]
[1755480716698,2.8,188.64,188.56,2.85]
[1755480717084,2.8,188.62,188.56,2.85]
[1755480717391,2.8,188.62,188.44,5.36979225]
[1755480717392,2.8,188.6,188.48,2.85]
[1755480717897,5.3003,188.55,188.52,2.85]
[1755480718193,5.3003,188.55,188.53,2.85]
[1755480718396,0.03508631,188.56,188.44,160.22]
[1755480718592,2.8,188.62,188.45,2.85]
[1755480718788,3.85432251,188.61,188.52,5.3008]
[1755480719002,5.2993,188.59,188.53,2.85]
[1755480719196,2.8,188.6,188.53,2.85]
[1755480719494,5.2996,188.58,188.53,2.85]
[1755480719698,2.8,188.57,188.45,2.85]
[1755480720597,2.8,188.64,188.46,2.85]
[1755480720802,2.8,188.64,188.49,2.85]
[1755480721092,5.298,188.63,188.48,5.36979225]
[1755480721291,2.8,188.65,188.58,2.85]
[1755480721488,5.79481457,188.72,188.58,2.85]
[1755480721489,2.8,188.72,188.58,2.85]
[1755480721693,3.85413824,188.71,188.58,2.85]
[1755480721893,2.8,188.72,188.58,2.85]
[1755480722091,5.2966,188.68,188.58,2.85]
[1755480722287,2.8,188.69,188.62,2.85]
[1755480722692,2.8,188.69,188.51,5.36979225]
[1755480722693,2.8,188.69,188.52,2.85]
[1755480722894,2.8,188.67,188.52,2.85]
[1755480723194,5.2986,188.61,188.52,2.85]
[1755480723391,0.03461821,188.62,188.52,2.85]
[1755480724299,0.03461821,188.62,188.61,2.85]
[1755480724995,0.03461821,188.62,188.52,2.85]
[1755480726093,0.03461821,188.62,188.58,5.2993]
[1755480726294,0.03461821,188.62,188.61,2.85]
[1755480727396,0.03461821,188.62,188.52,2.85]
[1755480727797,0.03461821,188.62,188.57,5.2994]
[1755480728297,0.03461821,188.62,188.6,2.85]
[1755480729298,0.03461821,188.62,188.61,2.85]
[1755480729994,0.03461821,188.62,188.57,5.2996]
[1755480730295,5.2991,188.59,188.48,2.85]
[1755480730596,2.8,188.6,188.48,2.85]
[1755480730795,5.2996,188.58,188.52,5.3008]
[1755480730996,5.36979225,188.65,188.42,5.36979225]
[1755480731196,2.8,188.63,188.43,161.07]
[1755480731390,2.8,188.6,188.51,2.85]
[1755480731994,2.8,188.6,188.54,2.85]
[1755480732197,0.03373679,188.57,188.54,2.85]
[1755480732701,0.03373679,188.57,188.55,2.85]
[1755480733400,0.03373679,188.57,188.56,2.85]
[1755480733796,2.8,188.62,188.56,2.85]
[1755480734198,2.8,188.69,188.56,2.85]
[1755480734400,2.8,188.67,188.56,2.85]
[1755480734804,0.03341851,188.63,188.5,15.97289225]
[1755480735208,2.8,188.67,188.5,15.97289225]
[1755480735394,2.8,188.67,188.51,2.85]
[1755480735598,0.03434675,188.58,188.51,2.85]
[1755480736293,0.03434675,188.58,188.57,5.2996]
[1755480736498,0.03434675,188.58,188.57,8.1496]
[1755480736700,5.2973,188.66,188.58,0.46565325]
[1755480737004,5.2973,188.66,188.59,2.85]
[1755480737306,5.2973,188.66,188.6,5.2987]
[1755480737496,5.2973,188.66,188.59,2.85]
[1755480737896,5.2976,188.65,188.59,2.85]
[1755480738098,2.81,188.65,188.59,2.85]
[1755480738703,2.81,188.68,188.6,0.03349395]
[1755480738903,3.82371715,188.67,188.6,0.03349395]
[1755480739109,2.81,188.65,188.57,3.0]
[1755480740009,2.81,188.63,188.59,0.03428581]
[1755480740408,8.17979225,188.69,188.56,3.0]
[1755480740712,2.81,188.67,188.56,3.0]
[1755480740909,5.2988,188.6,188.56,3.0]
[1755480741113,2.81,188.58,188.55,3.0]
[1755480741310,21.27979225,188.69,188.42,5.36979225]
[1755480741311,15.91,188.64,188.42,5.36979225]
[1755480741508,2.81,188.53,188.43,3.0]
[1755480741703,2.81,188.53,188.51,0.03382703]
[1755480742012,5.36979225,188.57,188.46,3.0]
[1755480742013,2.81,188.52,188.46,3.0]
[1755480742306,5.36979225,188.57,188.38,156.34]
[1755480742498,2.81,188.54,188.48,3.0]
[1755480743310,2.81,188.61,188.48,3.0]
[1755480743613,2.81,188.59,188.48,3.0]
[1755480743911,2.81,188.57,188.48,3.0]
[1755480744111,5.2984,188.62,188.55,3.0]
[1755480744312,3.84873812,188.61,188.43,5.36979225]
[1755480744502,2.81,188.59,188.47,5.3022]
[1755480744705,2.81,188.57,188.5,0.03461985]
[1755480744908,2.81,188.53,188.5,0.03461985]
[1755480745109,2.81,188.51,188.42,3.0]
[1755480745310,9.2151262,188.5,188.35,155.92]
[1755480745515,7.79564955,188.49,188.3,3.0]
[1755480745707,5.3047,188.39,188.3,3.0]
[1755480746015,2.81,188.41,188.3,3.0]
[1755480746215,5.3059,188.35,188.3,3.0]
[1755480746511,5.3059,188.35,188.12,37.80869831]
[1755480746512,2.81,188.41,188.23,3.0]
[1755480746704,2.81,188.39,188.23,3.0]
[1755480747415,2.81,188.42,188.26,3.0]
[1755480748413,2.81,188.4,188.21,159.26]
[1755480748611,2.81,188.4,188.25,3.0]
[1755480748816,2.81,188.4,188.34,3.0]
[1755480749812,0.03499382,188.39,188.34,3.0]
[1755480750018,2.84499382,188.39,188.26,3.0]
[1755480750217,2.81,188.39,188.26,3.0]
[1755480750408,5.3058,188.36,188.29,5.3075]
[1755480750617,2.81,188.33,188.29,3.0]
[1755480750811,0.03460076,188.34,188.22,3.0]
[1755480751012,2.81,188.4,188.24,3.0]
[1755480752115,2.81,188.4,188.34,3.0]
[1755480752420,2.81,188.43,188.34,3.0]
[1755480752629,2.81,188.46,188.34,3.0]
[1755480752914,0.03548055,188.39,188.34,3.0]
[1755480753215,8.75289731,188.6,188.34,3.0]
[1755480753216,2.81,188.49,188.34,3.0]
[1755480753623,5.36979225,188.44,188.34,3.0]
[1755480753814,2.81,188.43,188.31,3.0]
[1755480754417,2.81,188.43,188.29,3.0]
[1755480754815,2.81,188.43,188.35,0.03546196]
[1755480755121,15.91,188.59,188.28,356.42]
[1755480755122,2.81,188.39,188.28,3.0]
[1755480755321,5.3056,188.37,188.28,3.0]
[1755480755515,2.81,188.39,188.28,3.0]
[1755480756126,2.81,188.42,188.28,3.0]
[1755480756721,2.81,188.42,188.35,5.3058]